Workbook

Sheet Лист1
A1: 24 | B1: 33 | C1: 0.5 | G1: 10Сз+Бп | H1: 62 | I1: 0.7 | J1: 1 | K1: 21 | L1: 24 | M1: 300 | N1: 4 | O1: СРС | P1: Зміна ГР | Q1: 300
A2: 24 | B2: 37 | C2: 0.4 | G2: 10Сз | H2: 64 | I2: 0.7 | J2: 1а | K2: 22 | L2: 26 | M2: 320 | N2: 4 | O2: СРС | P2: Зміна ГР | Q2: 320
A3: 24 | B3: 11 | C3: 0.5 | G3: 10Сз | H3: 64 | I3: 0.7 | J3: 1а | K3: 22 | L3: 26 | M3: 320 | N3: 4 | O3: СРС | P3: Зміна ГР | Q3: 320
A4: 29 | B4: 33 | C4: 0.4 | G4: 10Сз | H4: 102 | I4: 0.6 | J4: 2 | K4: 25 | L4: 32 | M4: 320 | N4: 4 | O4: СРС | P4: Зміна ГР | Q4: 320
A5: 24 | B5: 2 | C5: 0.5 | G5: 10Сз +Ос | H5: 62 | I5: 0.7 | J5: 1а | K5: 21 | L5: 24 | M5: 300 | N5: 4 | O5: СРС | P5: Зміна ГР | Q5: 300
A6: 29 | B6: 1 | C6: 0.5 | G6: 10Сз | H6: 65 | I6: 0.7 | J6: 1а | K6: 21 | L6: 24 | M6: 300 | N6: 4 | O6: СРС | P6: Зміна ГР | Q6: 300
A7: 21 | B7: 20 | C7: 0.5 | G7: 10Сз | H7: 63 | I7: 0.7 | J7: 1 | K7: 19 | L7: 22 | M7: 280 | N7: 4 | O7: СРС | P7: Зміна ГР | Q7: 280
A8: 22 | B8: 2 | C8: 0.6 | G8: 10Сз | H8: 65 | I8: 0.75 | J8: 1а | K8: 24 | L8: 26 | M8: 380 | N8: 4 | O8: СРС | P8: Зміна ГР | Q8: 380
A9: 22 | B9: 29 | C9: 0.5 | G9: 10Сз+Бп | H9: 65 | I9: 0.7 | J9: 1 | K9: 22 | L9: 26 | M9: 320 | N9: 4 | O9: СРС | P9: Зміна ГР | Q9: 320
A10: 32 | B10: 28 | C10: 0.3 | G10: 10Сз+Бп | H10: 67 | I10: 0.7 | J10: 1 | K10: 24 | L10: 28 | M10: 360 | N10: 4 | O10: СРС | P10: Зміна ГР | Q10: 360
A11: 26 | B11: 4 | C11: 0.6 | G11: 10Сз | H11: 57 | I11: 0.7 | J11: 1а | K11: 26 | L11: 26 | M11: 340 | N11: 4 | O11: СРС | P11: Зміна ГР | Q11: 340
A12: 22 | B12: 4 | C12: 0.5 | G12: 8Сз2Бп | H12: 65 | I12: 0.7 | J12: 1 | K12: 22 | L12: 26 | M12: 270 | N12: 4 | O12: СРС | P12: Зміна ГР | Q12: 270
A13: 7 | B13: 12 | C13: 0.4 | G13: 10Сз+Бп | H13: 64 | I13: 0.7 | J13: 1а | K13: 24 | L13: 28 | M13: 360 | N13: 4 | O13: СРС | P13: Зміна ГР | Q13: 360
A14: 10 | B14: 32 | C14: 0.3 | G14: 10Сз | H14: 63 | I14: 0.7 | J14: 1 | K14: 24 | L14: 28 | M14: 360 | N14: 4 | O14: СРС | P14: Зміна ГР | Q14: 360
A15: 16 | B15: 1 | C15: 0.3 | G15: 10Сз | H15: 61 | I15: 0.7 | J15: 1 | K15: 24 | L15: 28 | M15: 360 | N15: 4 | O15: СРС | P15: Зміна ГР | Q15: 360
A16: 43 | B16: 19 | C16: 0.3 | G16: 10Сз+Вл | H16: 67 | I16: 0.7 | J16: 1а | K16: 24 | L16: 30 | M16: 360 | N16: 4 | O16: СРС | P16: Зміна ГР | Q16: 360
A17: 48 | B17: 4 | C17: 0.6 | G17: 10Сз | H17: 68 | I17: 0.7 | J17: 1 | K17: 22 | L17: 26 | M17: 320 | N17: 4 | O17: СРС | P17: Зміна ГР | Q17: 320
A18: 47 | B18: 18 | C18: 0.4 | G18: 10Сз+Бп | H18: 72 | I18: 0.7 | J18: 1 | K18: 23 | L18: 28 | M18: 340 | N18: 4 | O18: СРС | P18: Зміна ГР | Q18: 340
A19: 39 | B19: 1 | C19: 0.7 | G19: 10Сз | H19: 82 | I19: 0.6 | J19: 1 | K19: 23 | L19: 30 | M19: 290 | N19: 4 | O19: СРС | P19: Зміна ГР | Q19: 290
A20: 36 | B20: 16 | C20: 0.7 | G20: 10Сз | H20: 52 | I20: 0.7 | J20: 1а | K20: 22 | L20: 24 | M20: 320 | N20: 4 | O20: СРС | P20: Зміна ГР | Q20: 320
A21: 40 | B21: 15 | C21: 0.3 | G21: 10Сз | H21: 77 | I21: 0.7 | J21: 1 | K21: 25 | L21: 32 | M21: 380 | N21: 4 | O21: СРС | P21: Зміна ГР | Q21: 380
A22: 40 | B22: 16 | C22: 0.3 | G22: 10Сз | H22: 63 | I22: 0.7 | J22: 1а | K22: 23 | L22: 28 | M22: 340 | N22: 4 | O22: СРС | P22: Зміна ГР | Q22: 340
A23: 13 | B23: 9 | C23: 0.4 | G23: 10Сз | H23: 62 | I23: 0.8 | J23: 1а | K23: 24 | L23: 28 | M23: 410 | N23: 4 | O23: СРС | P23: Зміна ГР | Q23: 410
A24: 12 | B24: 3 | C24: 0.2 | G24: 10Сз | H24: 64 | I24: 0.7 | J24: 1 | K24: 21 | L24: 26 | M24: 300 | N24: 4 | O24: СРС | P24: Зміна ГР | Q24: 300
A25: 9 | B25: 22 | C25: 0.5 | G25: 10Сз | H25: 60 | I25: 0.7 | J25: 1а | K25: 24 | L25: 26 | M25: 360 | N25: 4 | O25: СРС | P25: Зміна ГР | Q25: 360
A26: 9 | B26: 12 | C26: 0.5 | G26: 10Сз+Бп | H26: 62 | I26: 0.7 | J26: 1 | K26: 23 | L26: 24 | M26: 340 | N26: 4 | O26: СРС | P26: Зміна ГР | Q26: 340
A27: 14 | B27: 1 | C27: 0.5 | G27: 10Сз | H27: 61 | I27: 0.8 | J27: 1 | K27: 22 | L27: 24 | M27: 360 | N27: 4 | O27: СРС | P27: Зміна ГР | Q27: 360
A28: 4 | B28: 17 | C28: 0.4 | G28: 10Сз+Вл | H28: 45 | I28: 0.7 | J28: 1 | K28: 16 | L28: 18 | M28: 200 | N28: 4 | O28: СРС | P28: Зміна ГР | Q28: 200
A29: 4 | B29: 41 | C29: 0.6 | G29: 10Сз | H29: 55 | I29: 0.7 | J29: 2 | K29: 17 | L29: 18 | M29: 220 | N29: 4 | O29: СРС | P29: Зміна ГР | Q29: 220
A30: 14 | B30: 22 | C30: 0.5 | G30: 10Сз | H30: 62 | I30: 0.7 | J30: 1а | K30: 23 | L30: 28 | M30: 340 | N30: 4 | O30: СРС | P30: Зміна ГР | Q30: 340

Sheet Санітарнооздоровчі 2016_2
O1: Додаток 1
N2: до Санітарних правил
B4: ПОГОДЖУЮ | H4: ПОГОДЖУЮ | N4: ПОГОДЖУЮ
B5: ________________________________________ | H5: ____________________________________________ | M5: _______________________________________________
B6: (найменування посади керівника державного | H6: найменування посади керівника структурного | M6: (найменування посади керівника органу виконавчої
B7: спеціалізованого | H7: підрозділу з | M7: влади з
B8: ____________________________________ | H8: ____________________________________________ | M8: _______________________________________________
B9: лісозахисного підприємства) | H9: питань екології та природних ресурсів обласної, | M9: питань лісового господарства Автономної Республіки Крим або
B10: __________________________________________ | H10: Київської та | M10: _______________________________________________
B11: (підпис, ініціали та прізвище) | H11: ___________________________________________ | M11: відповідного територіального органу Держлісагенства)
B12: ____ _________________ 20 ____ року | H12: Севастопольської міських держадміністрацій, органу | M12: ______________________________________________
H13: виконавчої влади Автономної Республіки Крим з питань | M13: (пдпис, ініціали та прізвище)
H14: охорони навколишнього природного середовища) | M14: _____ _______________20___ року
H15: _________________________________________________
H16: (підпис, ініціали та прізвище)
H17: _____ _______________________ 20____ року
A19: ПЕРЕЛІК
A21: зазходів з поліпшення санітарного стану лісів
A22: ДП "Костопільський лісгосп"
A23: (найменування власника лісів, постійного лісокористувача)
A24: _____________________________________
A25: (Автономна Республіка Крим, область)
A27: Лісництво | B27: № кварталу | C27: № виділу | D27: Площа виділу, га | E27: № підвиділу | F27: Площа підвиділу, гектарів | H27: Коротка таксаційна характеристика відповідно до матеріалів лісовпрідкування | O27: Категорія захищеності | P27: Вид запланованих заходиів | Q27: Причини призначення заходів | R27: Орієнтовний запас деревини, що підлягає вирубуванню, м3/га | S27: Наявність рослин та тварин занесених до Червоної книги
F28: загальна | G28: у тому числі площа, можлива для експлуатації | H28: склад | I28: вік, років | J28: повнота | K28: бонітет | L28: середня висота, м | M28: середній діаметер, см | N28: запас деревостану, м3/га
A29: 1 | B29: 2 | C29: 3 | D29: 4 | E29: 5 | F29: 6 | G29: 7 | H29: 8 | I29: 9 | J29: 10 | K29: 11 | L29: 12 | M29: 13 | N29: 14 | O29: 15 | P29: 16 | Q29: 17 | R29: 18 | S29: 19
A30: Стидинське | B30: 22 | C30: 29 | D30: 7.7 | E30: 1 | F30: 0.5 | G30: 0.5 | H30: 10Сз+Бп | I30: 58 | J30: 0.7 | K30: 1 | L30: 22 | M30: 26 | N30: 320 | O30: 4 | P30: СРС | Q30: Пониження РГВ | R30: 320
B31: 32 | C31: 28 | D31: 4.1 | E31: 1 | F31: 0.3 | G31: 0.3 | H31: 10Сз+Бп | I31: 60 | J31: 0.7 | K31: 1 | L31: 24 | M31: 28 | N31: 360 | O31: 4 | P31: СРС | Q31: Пониження РГВ | R31: 360
B32: 22 | C32: 4 | D32: 2.2 | E32: 1 | F32: 0.5 | G32: 0.5 | H32: 8Сз2Бп | I32: 58 | J32: 0.7 | K32: 1 | L32: 22 | M32: 26 | N32: 270 | O32: 4 | P32: СРС | Q32: Пониження РГВ | R32: 270
B33: 8 | C33: 1 | D33: 1 | E33: 1 | F33: 0.3 | G33: 0.3 | H33: 10Сз | I33: 65 | J33: 0.7 | K33: 1а | L33: 20 | M33: 22 | N33: 280 | O33: 4 | P33: СРС | Q33: Пониження РГВ | R33: 280
B34: 36 | C34: 14 | D34: 15.6 | E34: 1 | F34: 0.4 | H34: 10Сз+Вл | I34: 52 | J34: 0.7 | K34: 1 | L34: 18 | M34: 18 | N34: 380 | O34: 4 | P34: СРС | Q34: Пониження РГВ | R34: 380
B35: 39 | C35: 1 | D35: 2 | E35: 1 | F35: 0.7 | G35: 0.7 | H35: 10Сз | I35: 82 | J35: 0.6 | K35: 1 | L35: 23 | M35: 30 | N35: 290 | O35: 4 | P35: СРС | Q35: Пониження РГВ | R35: 290
B36: 12 | C36: 3 | D36: 2.1 | E36: 1 | F36: 0.2 | G36: 0.2 | H36: 10Сз | I36: 56 | J36: 0.7 | K36: 1 | L36: 21 | M36: 26 | N36: 300 | O36: 4 | P36: СРС | Q36: Пониження РГВ | R36: 300
B37: 9 | C37: 22 | D37: 1.5 | E37: 1 | F37: 0.3 | G37: 0.3 | H37: 10Сз | I37: 53 | J37: 0.7 | K37: 1а | L37: 24 | M37: 26 | N37: 360 | O37: 4 | P37: СРС | Q37: Пониження РГВ | R37: 360
B38: 14 | C38: 1 | D38: 15.3 | E38: 1 | F38: 0.5 | G38: 0.5 | H38: 10Сз | I38: 54 | J38: 0.8 | K38: 1 | L38: 22 | M38: 24 | N38: 360 | O38: 4 | P38: СРС | Q38: Пониження РГВ | R38: 360
B39: 4 | C39: 17 | D39: 1.7 | E39: 1 | F39: 0.4 | H39: 10Сз+Вл | I39: 38 | J39: 0.7 | K39: 1 | L39: 16 | M39: 18 | N39: 200 | O39: 4 | P39: СРС | Q39: Пониження РГВ | R39: 200
B40: 4 | C40: 41 | D40: 3.7 | E40: 1 | F40: 0.6 | H40: 10Сз | I40: 48 | J40: 0.7 | K40: 2 | L40: 17 | M40: 18 | N40: 220 | O40: 4 | P40: СРС | Q40: Пониження РГВ | R40: 220
A41: Стидинське
B42: Разом | F42: =SUM(F30:F40) -> 4.7 | G42: =SUM(G30:G40) -> 3.3
B44: 46 | C44: 27 | D44: 14.7 | F44: 14.7 | H44: 8Сз1Бп1Вл | I44: 38 | J44: 0.7 | K44: 1а | L44: 16 | M44: 18 | N44: 190 | O44: 4 | P44: СРВ | Q44: Пониження РГВ | R44: 4
B45: 22 | C45: 27 | D45: 16.3 | F45: 16.3 | H45: 10Сз +Бп | I45: 56 | J45: 0.7 | K45: 2 | L45: 18 | M45: 24 | N45: 240 | O45: 4 | P45: СРВ | Q45: Пониження РГВ | R45: 4
B46: 22 | C46: 7 | D46: 3.4 | F46: 3.4 | H46: 8Сз2Бп | I46: 60 | J46: 0.65 | K46: 1 | L46: 21 | M46: 26 | N46: 230 | O46: 4 | P46: СРВ | Q46: Пониження РГВ | R46: 12
B47: 16 | C47: 1 | D47: 20.8 | F47: 20.8 | H47: 10Сз | I47: 54 | J47: 0.7 | K47: 1а | L47: 24 | M47: 28 | N47: 360 | O47: 4 | P47: СРВ | Q47: Пониження РГВ | R47: 4
B48: 10 | C48: 32 | D48: 6.2 | F48: 6.2 | H48: 10Сз | I48: 56 | J48: 0.7 | K48: 1а | L48: 24 | M48: 28 | N48: 360 | O48: 4 | P48: СРВ | Q48: Пониження РГВ | R48: 9
B49: 9 | C49: 22 | D49: 1.5 | F49: 1.2 | H49: 10Сз | I49: 53 | J49: 0.7 | K49: 1а | L49: 24 | M49: 26 | N49: 360 | O49: 4 | P49: СРВ | Q49: Пониження РГВ | R49: 15
B50: 7 | C50: 12 | D50: 7.2 | F50: 7.2 | H50: 10Cз+Бп | I50: 57 | J50: 0.7 | K50: 1а | L50: 24 | M50: 28 | N50: 360 | O50: 4 | P50: СРВ | Q50: Пониження РГВ | R50: 10
B51: 9 | C51: 12 | D51: 4.2 | F51: 3.5 | H51: 10Cз+Бп | I51: 55 | J51: 0.7 | K51: 1 | L51: 23 | M51: 24 | N51: 340 | O51: 4 | P51: СРВ | Q51: Пониження РГВ | R51: 15
B52: Разом | F52: =SUM(F44:F51) -> 73.3
B54: Всього: | F54: =F52+F42 -> 78 | G54: =G52+G42 -> 3.3
A56: Костопільське | B56: 2 | C56: 32 | D56: 1 | E56: 1 | F56: 1 | G56: 1 | H56: 10Сз+Бп | I56: 80 | J56: 0.7 | K56: 1 | L56: 27 | M56: 36 | N56: 420 | O56: 4 | P56: СРС | Q56: Пониження РГВ | R56: 420
B57: 6 | C57: 26 | D57: 2.2 | E57: 2 | F57: 0.4 | G57: 0.4 | H57: 10Сз | I57: 80 | J57: 0.7 | K57: 1А | L57: 29 | M57: 36 | N57: 460 | O57: 4 | P57: СРС | Q57: Пониження РГВ | R57: 460
B58: 11 | C58: 19 | D58: 0.9 | E58: 1 | F58: 0.3 | G58: 0.3 | H58: 9Сз1Гз+Дз | I58: 80 | J58: 0.7 | K58: 1 | L58: 27 | M58: 32 | N58: 300 | O58: 4 | P58: СРС | Q58: Пониження РГВ | R58: 300
B59: 25 | C59: 24 | D59: 4.8 | E59: 1 | F59: 0.2 | H59: 10Сз+Бп | I59: 45 | J59: 0.8 | K59: 1 | L59: 18 | M59: 24 | N59: 280 | O59: 4 | P59: СРС | Q59: Пониження РГВ | R59: 280
B60: 37 | C60: 19 | D60: 1.2 | E60: 1 | F60: 0.1 | H60: 10Сз+Бп | I60: 65 | J60: 0.7 | K60: 1А | L60: 26 | M60: 30 | N60: 400 | O60: 2 | P60: СРС | Q60: Пониження РГВ | R60: 400
B61: 37 | C61: 20 | D61: 1.4 | E61: 1 | F61: 0.2 | H61: 10Сз+Бп | I61: 65 | J61: 0.8 | K61: 1А | L61: 26 | M61: 30 | N61: 460 | O61: 2 | P61: СРС | Q61: Пониження РГВ | R61: 460
B62: 54 | C62: 5 | D62: 3 | E62: 1 | F62: 0.3 | H62: 9Сз1Бп+Гз | I62: 56 | J62: 0.75 | K62: 1А | L62: 24 | M62: 30 | N62: 350 | O62: 2 | P62: СРС | Q62: Пониження РГВ | R62: 350
B63: 11 | C63: 3 | D63: 3 | E63: 2 | F63: 1 | G63: 1 | H63: 8Сз2Дз+Бп | I63: 75 | J63: 0.75 | K63: 1А | L63: 28 | M63: 32 | N63: 425 | O63: 4 | P63: СРС | Q63: Пониження РГВ | R63: 425
B64: 23 | C64: 3 | D64: 6.9 | E64: 1 | F64: 0.5 | H64: 10Сз+Бп+Гз | I64: 60 | J64: 0.7 | K64: 1 | L64: 22 | M64: 28 | N64: 360 | O64: 2 | P64: СРС | Q64: Пониження РГВ | R64: 180
B65: 31 | C65: 27 | D65: 0.4 | F65: 0.4 | G65: 0.4 | H65: 7Сз3Гз | I65: 80 | J65: 0.55 | K65: 1А | L65: 30 | M65: 36 | N65: 250 | O65: 2 | P65: СРС | Q65: Пониження РГВ | R65: 100
B66: 37 | C66: 29 | D66: 0.8 | E66: 1 | F66: 0.4 | H66: 10Сз | I66: 58 | J66: 0.75 | K66: 1А | L66: 23 | M66: 26 | N66: 360 | O66: 2 | P66: СРС | Q66: Пониження РГВ | R66: 140
B67: 38 | C67: 9 | D67: 3.2 | E67: 1 | F67: 0.4 | H67: 8Сз1Бп1Ос+Гз | I67: 58 | J67: 0.8 | K67: 1А | L67: 25 | M67: 30 | N67: 375 | O67: 2 | P67: СРС | Q67: Пониження РГВ | R67: 150
B68: 45 | C68: 14 | D68: 1.8 | E68: 1 | F68: 0.1 | G68: 0.1 | H68: 5Сз3Дз2Сз+Ос | I68: 160 | J68: 0.55 | K68: 2 | L68: 30 | M68: 56 | N68: 310 | O68: 2 | P68: СРС | Q68: Пониження РГВ | R68: 30
B69: 56 | C69: 3 | D69: 11.3 | E69: 1 | F69: 0.4 | H69: 7Сз3Бп | I69: 58 | J69: 0.8 | K69: 1А | L69: 25 | M69: 30 | N69: 360 | O69: 2 | P69: СРС | Q69: Пониження РГВ | R69: 140
B70: 84 | C70: 16 | D70: 2.1 | E70: 2 | F70: 1 | H70: 10Сз | I70: 57 | J70: 0.65 | K70: 1А | L70: 25 | M70: 26 | N70: 355 | O70: 2 | P70: СРС | Q70: Пониження РГВ | R70: 355
B71: 95 | C71: 6 | D71: 2.7 | E71: 2 | F71: 0.7 | H71: 10Сз | I71: 45 | J71: 0.8 | K71: 1А | L71: 21 | M71: 22 | N71: 340 | O71: 4 | P71: СРС | Q71: Пониження РГВ | R71: 230
B72: Разом | F72: =SUM(F56:F71) -> 7.4 | G72: =SUM(G56:G71) -> 3.2
B74: 3 | C74: 19 | D74: 1.7 | F74: 0.5 | H74: 5Дз4Сз1Бп | I74: 57 | J74: 0.8 | K74: 1 | L74: 19 | M74: 20 | N74: 430 | O74: 4 | P74: СРВ | Q74: Пониження РГВ | R74: 10
B75: 6 | C75: 26 | D75: 2.2 | E75: 1 | F75: 1.8 | H75: 10Сз | I75: 80 | J75: 0.7 | K75: 1А | L75: 29 | M75: 36 | N75: 830 | O75: 4 | P75: СРВ | Q75: Пониження РГВ | R75: 15
B76: 10 | C76: 5 | D76: 4.7 | F76: 4.7 | H76: 10Сз+Бп | I76: 80 | J76: 0.6 | K76: 1А | L76: 28 | M76: 36 | N76: 390 | O76: 4 | P76: СРВ | Q76: Пониження РГВ | R76: 5
B77: 11 | C77: 17 | D77: 0.8 | F77: 0.8 | H77: 8Сз2Гз+Бп+Дз | I77: 80 | J77: 0.6 | K77: 1А | L77: 28 | M77: 32 | N77: 260 | O77: 4 | P77: СРВ | Q77: Пониження РГВ | R77: 15
B78: 11 | C78: 18 | D78: 1.7 | F78: 1.7 | H78: 5Сз2Дз2Бп1Гз+Влч | I78: 72 | J78: 0.65 | K78: 1А | L78: 27 | M78: 32 | N78: 265 | O78: 4 | P78: СРВ | Q78: Пониження РГВ | R78: 10
B79: 21 | C79: 18 | D79: 9.5 | E79: 2 | F79: 9.3 | H79: 9Сз1Гз+Бп | I79: 90 | J79: 0.6 | K79: 1 | L79: 28 | M79: 36 | N79: 325 | O79: 2 | P79: СРВ | Q79: Пониження РГВ | R79: 15
B80: 25 | C80: 21 | D80: 1.1 | E80: 2 | F80: 0.8 | H80: 10Сз+Бп | I80: 50 | J80: 0.8 | K80: 1А | L80: 23 | M80: 28 | N80: 390 | O80: 4 | P80: СРВ | Q80: Пониження РГВ | R80: 15
B81: 26 | C81: 7 | D81: 5 | F81: 5 | H81: 10Сз+Бп+Дз | I81: 85 | J81: 0.7 | K81: 1 | L81: 28 | M81: 36 | N81: 440 | O81: 2 | P81: СРВ | Q81: Пониження РГВ | R81: 15
B82: 26 | C82: 32 | D82: 4 | F82: 4 | H82: 6Сз4Бп+Дз | I82: 60 | J82: 0.8 | K82: 1А | L82: 26 | M82: 32 | N82: 350 | O82: 2 | P82: СРВ | Q82: Пониження РГВ | R82: 10
B83: 33 | C83: 19 | D83: 4.1 | F83: 4.1 | H83: 10Сз+Бп+Влч | I83: 50 | J83: 0.85 | K83: 1 | L83: 19 | M83: 24 | N83: 320 | O83: 2 | P83: СРВ | Q83: Пониження РГВ | R83: 15
B84: 38 | C84: 2 | D84: 0.7 | F84: 0.7 | H84: 8Ос1Сз1Гз+Дз+Влч | I84: 75 | J84: 0.6 | K84: 1 | L84: 27 | M84: 36 | N84: 300 | O84: 2 | P84: СРВ | Q84: Вітровал,бурелом | R84: 15
B85: 45 | C85: 15 | D85: 0.6 | F85: 0.6 | H85: 6Сз4Бп | I85: 58 | J85: 0.7 | K85: 1А | L85: 23 | M85: 28 | N85: 290 | O85: 2 | P85: СРВ | Q85: Пониження РГВ | R85: 10
B86: 45 | C86: 16 | D86: 1.7 | F86: 1.7 | H86: 4Сз2Бп2Гз1Дз1Влч+Ос | I86: 60 | J86: 0.7 | K86: 1А | L86: 25 | M86: 32 | N86: 220 | O86: 2 | P86: СРВ | Q86: Пониження РГВ | R86: 10
B87: 45 | C87: 17 | D87: 1.3 | F87: 1.3 | H87: 10Сз+Бп | I87: 70 | J87: 0.85 | K87: 1А | L87: 26 | M87: 30 | N87: 490 | O87: 2 | P87: СРВ | Q87: Пониження РГВ | R87: 10
A88: Костопільське | B88: 45 | C88: 18 | D88: 3.2 | F88: 3.2 | H88: 10Сз | I88: 70 | J88: 0.85 | K88: 1А | L88: 26 | M88: 30 | N88: 490 | O88: 2 | P88: СРВ | Q88: Пониження РГВ | R88: 15
B89: 45 | C89: 38 | D89: 0.8 | F89: 0.8 | H89: 6Сз2Бп1Дз1Влч+Ос | I89: 60 | J89: 0.75 | K89: 1А | L89: 25 | M89: 30 | N89: 340 | O89: 2 | P89: СРВ | Q89: Пониження РГВ | R89: 15
B90: 48 | C90: 10 | D90: 5.5 | F90: 5.5 | H90: 9Сз1Бп | I90: 63 | J90: 0.8 | K90: 1А | L90: 25 | M90: 28 | N90: 390 | O90: 2 | P90: СРВ | Q90: Пониження РГВ | R90: 10
B91: 3 | C91: 36 | D91: 10.6 | E91: 1 | F91: 3 | H91: 10Сз | I91: 80 | J91: 0.65 | K91: 1А | L91: 28 | M91: 36 | N91: 365 | O91: 4 | P91: СРВ | Q91: Пониження РГВ | R91: 10
B92: 11 | C92: 3 | D92: 3 | E92: 1 | F92: 2 | H92: 8Сз2Дз+Бп | I92: 75 | J92: 0.75 | K92: 1А | L92: 28 | M92: 32 | N92: 425 | O92: 4 | P92: СРВ | Q92: Пониження РГВ | R92: 10
B93: 56 | C93: 3 | D93: 11.3 | E93: 2 | F93: 3 | H93: 7Сз3Бп | I93: 58 | J93: 0.8 | K93: 1А | L93: 25 | M93: 30 | N93: 360 | O93: 2 | P93: СРВ | Q93: Пониження РГВ | R93: 10
B94: 76 | C94: 15 | D94: 4.6 | F94: 3 | H94: 7Сз3Дз | I94: 52 | J94: 0.7 | K94: 1А | L94: 22 | M94: 28 | N94: 300 | O94: 4 | P94: СРВ | Q94: Пониження РГВ | R94: 15
B95: 84 | C95: 16 | D95: 2.1 | E95: 1 | F95: 1.1 | H95: 10Сз | I95: 57 | J95: 0.65 | K95: 1А | L95: 25 | M95: 26 | N95: 355 | O95: 2 | P95: СРВ | Q95: Пониження РГВ | R95: 10
B96: 95 | C96: 6 | D96: 2.7 | E96: 1 | F96: 2 | H96: 10Сз | I96: 45 | J96: 0.8 | K96: 1А | L96: 21 | M96: 22 | N96: 340 | O96: 4 | P96: СРВ | Q96: Пониження РГВ | R96: 15
B98: Разом | F98: =SUM(F74:F97) -> 60.6
B100: Всього: | F100: =F98+F72 -> 68 | G100: =G98+G72 -> 3.2
A102: Базальтівське | B102: 14 | C102: 2 | D102: 4.1 | E102: 1 | F102: 1.5 | H102: 9Сз1Гз+Бп+Дз | I102: 80 | J102: 0.7 | K102: 1А | L102: 29 | M102: 36 | N102: 370 | O102: 3 | P102: СРС | Q102: Пониження РГВ | R102: 370
B103: 32 | C103: 4 | D103: 17.6 | E103: 1 | F103: 0.2 | G103: 0.2 | H103: 8Сз2Бп+Дз | I103: 80 | J103: 0.6 | K103: 1 | L103: 27 | M103: 36 | N103: 320 | O103: 4 | P103: СРС | Q103: Пониження РГВ | R103: 320
B104: 31 | C104: 10 | D104: 2.4 | E104: 1 | F104: 0.5 | H104: 7Сз2Дз1Ял | I104: 44 | J104: 0.7 | K104: 1А | L104: 21 | M104: 26 | N104: 250 | O104: 4 | P104: СРС | Q104: Пониження РГВ | R104: 250
B105: 47 | C105: 3 | D105: 9.4 | E105: 1 | F105: 0.1 | G105: 0.1 | H105: 10Сз | I105: 55 | J105: 0.7 | K105: 1 | L105: 21 | M105: 22 | N105: 300 | O105: 4 | P105: СРС | Q105: Пониження РГВ | R105: 300
B106: 29 | C106: 35 | D106: 0.7 | E106: 1 | F106: 0.4 | G106: 0.4 | H106: 10Сз+Влч | I106: 75 | J106: 0.7 | K106: 1а | L106: 27 | M106: 32 | N106: 410 | O106: 4 | P106: СРС | Q106: Пониження РГВ | R106: 410
B107: 42 | C107: 26 | D107: 0.4 | F107: 0.4 | G107: 0.4 | H107: 10Сз+Влч | I107: 80 | J107: 0.6 | K107: 1а | L107: 29 | M107: 36 | N107: 390 | O107: 4 | P107: СРС | Q107: Пониження РГВ | R107: 390
B108: 43 | C108: 10 | D108: 4.2 | E108: 1 | F108: 1.5 | H108: 10сз | I108: 80 | J108: 0.65 | K108: 1 | L108: 27 | M108: 32 | N108: 400 | O108: 3 | P108: СРС | Q108: Пониження РГВ | R108: 400
B109: 47 | C109: 10 | D109: 8 | E109: 1 | F109: 0.2 | G109: 0.2 | H109: 8Сз2Дз | I109: 57 | J109: 0.8 | K109: 1 | L109: 20 | M109: 22 | N109: 280 | O109: 4 | P109: СРС | Q109: Пониження РГВ | R109: 280
B110: 43 | C110: 50 | D110: 1.7 | E110: 1 | F110: 0.5 | G110: 0.5 | H110: 10Cз+Дз | I110: 80 | J110: 0.7 | K110: 1 | L110: 32 | M110: 27 | N110: 400 | O110: 4 | P110: СРС | Q110: Пониження РГВ | R110: 400
B111: 43 | C111: 45 | D111: 3.5 | E111: 1 | F111: 0.2 | G111: 0.2 | H111: 9Сз1Дз | I111: 55 | J111: 0.7 | K111: 1а | L111: 23 | M111: 24 | N111: 310 | O111: 4 | P111: СРС | Q111: Пониження РГВ | R111: 310
B112: 46 | C112: 2 | D112: 2.4 | E112: 1 | F112: 0.2 | H112: 10Сз | I112: 51 | J112: 0.7 | K112: 1 | L112: 20 | M112: 20 | N112: 280 | O112: 4 | P112: СРС | Q112: Пониження РГВ | R112: 280
B113: 35 | C113: 40 | D113: 9.7 | E113: 1 | F113: 1.5 | G113: 1.5 | H113: 10Сз+Бп | I113: 85 | J113: 0.6 | K113: 1 | L113: 28 | M113: 36 | N113: 380 | O113: 4 | P113: СРС | Q113: Пониження РГВ | R113: 380
B114: 35 | C114: 43 | D114: 2.9 | E114: 1 | F114: 1 | G114: 1 | H114: 10Сз | I114: 85 | J114: 0.7 | K114: 1 | L114: 28 | M114: 36 | N114: 420 | O114: 4 | P114: СРС | Q114: Пониження РГВ | R114: 420
B115: 36 | C115: 24 | D115: 2 | E115: 1 | F115: 1.5 | G115: 1.5 | H115: 10Cз+Дз+Гз | I115: 58 | J115: 0.7 | K115: 1а | L115: 25 | M115: 28 | N115: 370 | O115: 4 | P115: СРС | Q115: Пониження РГВ | R115: 370
B116: 37 | C116: 18 | D116: 1.1 | F116: 1.1 | G116: 1.1 | H116: 10Сз+Яз | I116: 58 | J116: 0.8 | K116: 1а | L116: 24 | M116: 26 | N116: 360 | O116: 4 | P116: СРС | Q116: Пониження РГВ | R116: 360
B117: 38 | C117: 14 | D117: 1.9 | E117: 1 | F117: 0.4 | G117: 0.4 | H117: 10Сз+Гр | I117: 57 | J117: 0.7 | K117: 1а | L117: 23 | M117: 26 | N117: 340 | O117: 4 | P117: СРС | Q117: Пониження РГВ | R117: 340
B119: Разом | F119: =SUM(F102:F117) -> 11.2 | G119: =SUM(G102:G117) -> 7.5
B121: 15 | C121: 8 | D121: 1.3 | F121: 1.3 | H121: 8Сз2Гз+Дз+Бп+Кл | I121: 47 | J121: 0.6 | K121: 1Б | L121: 23 | M121: 26 | N121: 240 | O121: 3 | P121: СРВ | Q121: Пониження РГВ | R121: 10
B122: 29 | C122: 9 | D122: 1.9 | F122: 1.9 | H122: 10Сз+Дз+Гз | I122: 70 | J122: 0.65 | K122: 1Б | L122: 29 | M122: 6 | N122: 430 | O122: 4 | P122: СРВ | Q122: Пониження РГВ | R122: 15
B123: 17 | C123: 14 | D123: 1.6 | F123: 1.6 | H123: 10Сз+Дз+Гз | I123: 72 | J123: 0.6 | K123: 1А | L123: 27 | M123: 40 | N123: 350 | O123: 4 | P123: СРВ | Q123: Пониження РГВ | R123: 15
B124: 31 | C124: 8 | D124: 1 | F124: 1 | H124: 10Сз+Дз+Ял | I124: 80 | J124: 0.7 | K124: 1А | L124: 29 | M124: 36 | N124: 450 | O124: 4 | P124: СРВ | Q124: Пониження РГВ | R124: 15
B125: 47 | C125: 3 | D125: 9.4 | F125: 9.4 | H125: 10Сз | I125: 55 | J125: 0.7 | K125: 1 | L125: 21 | M125: 22 | N125: 300 | O125: 4 | P125: СРВ | Q125: Пониження РГВ | R125: 10
B126: Разом | F126: =SUM(F121:F125) -> 15.2
B128: Всього: | F128: =F126+F119 -> 26.4 | G128: =G126+G119 -> 7.5
A130: Злазненське | B130: 8 | C130: 3 | D130: 7.3 | E130: 1 | F130: 1 | G130: 1 | H130: 8С2Б | I130: 55 | J130: 0.7 | K130: 1 | L130: 21 | M130: 26 | N130: 270 | O130: 4 | P130: СРС | Q130: Пониження РГВ | R130: 270
B131: 15 | C131: 39 | D131: 2.2 | E131: 1 | F131: 0.1 | G131: 0.1 | H131: 10С | I131: 53 | J131: 0.8 | K131: 1 | L131: 19 | M131: 20 | N131: 300 | O131: 4 | P131: СРС | Q131: Пониження РГВ | R131: 300
B132: 17 | C132: 5 | D132: 1.4 | E132: 1 | F132: 0.1 | H132: 10Сз+Бп | I132: 42 | J132: 0.75 | K132: 1а | L132: 18 | M132: 20 | N132: 260 | O132: 4 | P132: СРС | Q132: Пониження РГВ | R132: 260
B133: 1 | C133: 14 | D133: 21 | E133: 1 | F133: 0.3 | G133: 0.3 | H133: 10С+Б | I133: 60 | J133: 0.8 | K133: 1 | L133: 22 | M133: 24 | N133: 380 | O133: 4 | P133: СРС | Q133: Вітровал,бурелом | R133: 380
B134: 1 | C134: 14 | D134: 21 | E134: 2 | F134: 0.3 | G134: 0.3 | H134: 10С+Б | I134: 60 | J134: 0.8 | K134: 1 | L134: 22 | M134: 24 | N134: 380 | O134: 4 | P134: СРС | Q134: Вітровал,бурелом | R134: 380
A135: Злазненське | B135: 5 | C135: 29 | D135: 7.4 | E135: 1 | F135: 0.8 | G135: 0.8 | H135: 5С5Б+Ос | I135: 60 | J135: 0.7 | K135: 1 | L135: 21 | M135: 26 | N135: 230 | O135: 4 | P135: СРС | Q135: Вітровал,бурелом | R135: 230
B136: 3 | C136: 4 | D136: 0.7 | E136: 1 | F136: 0.3 | G136: 0.3 | H136: 10С | I136: 57 | J136: 0.7 | K136: 1а | L136: 23 | M136: 26 | N136: 340 | O136: 4 | P136: СРС | Q136: Пониження РГВ | R136: 340
B137: 23 | C137: 3 | D137: 10.4 | E137: 1 | F137: 0.2 | G137: 0.2 | H137: 10Сз+Бп+Ос | I137: 55 | J137: 0.7 | K137: 1 | L137: 19 | M137: 20 | N137: 260 | O137: 4 | P137: СРС | Q137: Пониження РГВ | R137: 260
B138: Разом: | F138: =SUM(F130:F137) -> 3.1 | G138: =SUM(G130:G137) -> 3
B140: 1 | C140: 7 | D140: 2.7 | F140: =D140 -> 2.7 | H140: 9С1Б+Ос | I140: 80 | J140: 0.7 | K140: 1 | L140: 24 | M140: 32 | N140: 340 | O140: 4 | P140: СРВ | Q140: Пониження РГВ | R140: 8
B141: 2 | C141: 12 | D141: 17.2 | F141: 17.2 | H141: 9С1Б+Вч+Ос | I141: 70 | J141: 0.6 | K141: 1 | L141: 23 | M141: 32 | N141: 280 | O141: 4 | P141: СРВ | Q141: Пониження РГВ | R141: 7
B142: 2 | C142: 22 | D142: 3.1 | F142: 3.1 | H142: 10С+Б+Ос | I142: 55 | J142: 0.6 | K142: 1а | L142: 24 | M142: 30 | N142: 310 | O142: 4 | P142: СРВ | Q142: Пониження РГВ | R142: 6
B143: 4 | C143: 10 | D143: 3.3 | F143: 3.3 | H143: 10С+Б | I143: 70 | J143: 0.7 | K143: 1 | L143: 25 | M143: 32 | N143: 380 | O143: 4 | P143: СРВ | Q143: Пониження РГВ | R143: 7
B144: 4 | C144: 23 | D144: 1.5 | F144: 1.5 | H144: 9С1Б | I144: 70 | J144: 0.75 | K144: 1 | L144: 25 | M144: 32 | N144: 400 | O144: 4 | P144: СРВ | Q144: Пониження РГВ | R144: 9
B145: 5 | C145: 22 | D145: 4.8 | F145: 4.8 | H145: 10С | I145: 60 | J145: 0.8 | K145: 1 | L145: 22 | M145: 24 | N145: 360 | O145: 4 | P145: СРВ | Q145: Пониження РГВ | R145: 8
B146: 6 | C146: 22 | D146: 31.1 | F146: 31.1 | H146: 10С | I146: 57 | J146: 0.9 | K146: 1 | L146: 21 | M146: 24 | N146: 380 | O146: 4 | P146: СРВ | Q146: Пониження РГВ | R146: 5
B147: 6 | C147: 25 | D147: 0.8 | F147: 0.8 | H147: 10С | I147: 57 | J147: 0.8 | K147: 1 | L147: 20 | M147: 24 | N147: 320 | O147: 4 | P147: СРВ | Q147: Пониження РГВ | R147: 8
B148: 8 | C148: 3 | D148: 7.3 | F148: 6.3 | H148: 8С2Б | I148: 55 | J148: 0.7 | K148: 1 | L148: 21 | M148: 26 | N148: 270 | O148: 4 | P148: СРВ | Q148: Пониження РГВ | R148: 7
B149: 10 | C149: 15 | D149: 1.5 | F149: 1.5 | H149: 10С+Б | I149: 70 | J149: 0.8 | K149: 1 | L149: 24 | M149: 28 | N149: 400 | O149: 4 | P149: СРВ | Q149: Пониження РГВ | R149: 20
B150: 13 | C150: 31 | D150: 7.6 | F150: 7.6 | H150: 10С | I150: 48 | J150: 0.8 | K150: 2 | L150: 17 | M150: 18 | N150: 260 | O150: 4 | P150: СРВ | Q150: Пониження РГВ | R150: 8
B151: 14 | C151: 1 | D151: 23.8 | F151: 23.8 | H151: 10С+Б+Ос+Д+Вч | I151: 48 | J151: 0.7 | K151: 2 | L151: 17 | M151: 20 | N151: 220 | O151: 4 | P151: СРВ | Q151: Пониження РГВ | R151: 5
B152: 15 | C152: 39 | D152: 2.2 | F152: 2.1 | H152: 10С | I152: 53 | J152: 0.8 | K152: 1 | L152: 19 | M152: 20 | N152: 300 | O152: 4 | P152: СРВ | Q152: Пониження РГВ | R152: 6
B153: 17 | C153: 5 | D153: 1.4 | F153: 1.3 | H153: 10С+Б | I153: 42 | J153: 0.75 | K153: 1а | L153: 18 | M153: 20 | N153: 260 | O153: 4 | P153: СРВ | Q153: Пониження РГВ | R153: 8
B154: 17 | C154: 6 | D154: 1.2 | F154: 1.2 | H154: 6С2Вч2Д+Гр | I154: 75 | J154: 0.6 | K154: 1 | L154: 23 | M154: 28 | N154: 240 | O154: 4 | P154: СРВ | Q154: Пониження РГВ | R154: 7
B155: 17 | C155: 13 | D155: 5.5 | F155: 5.5 | H155: 9С1Гр+Д | I155: 80 | J155: 0.6 | K155: 1 | L155: 25 | M155: 36 | N155: 260 | O155: 4 | P155: СРВ | Q155: Пониження РГВ | R155: 6
B156: 18 | C156: 44 | D156: 1.1 | F156: 1.1 | H156: 10С | I156: 60 | J156: 0.7 | K156: 1 | L156: 22 | M156: 32 | N156: 320 | O156: 4 | P156: СРВ | Q156: Пониження РГВ | R156: 7
B157: 18 | C157: 45 | D157: 5.8 | F157: 5.8 | H157: 10С+Б | I157: 46 | J157: 0.7 | K157: 1 | L157: 17 | M157: 20 | N157: 220 | O157: 4 | P157: СРВ | Q157: Пониження РГВ | R157: 6
B158: 19 | C158: 30 | D158: 9.4 | F158: 9.4 | H158: 10С+Б | I158: 44 | J158: 0.7 | K158: 1 | L158: 18 | M158: 22 | N158: 240 | O158: 4 | P158: СРВ | Q158: Пониження РГВ | R158: 5
B159: 19 | C159: 32 | D159: 1.3 | F159: 1.3 | H159: 10С+Вч | I159: 56 | J159: 0.7 | K159: 1 | L159: 21 | M159: 26 | N159: 300 | O159: 4 | P159: СРВ | Q159: Пониження РГВ | R159: 5
B160: 19 | C160: 39 | D160: 1.6 | F160: 1.6 | H160: 6С3Ос1Б+Вч | I160: 50 | J160: 0.6 | K160: 1 | L160: 19 | M160: 26 | N160: 200 | O160: 4 | P160: СРВ | Q160: Пониження РГВ | R160: 7
B161: 20 | C161: 7 | D161: 4.2 | F161: 4.2 | H161: 10С+Б+Ос | I161: 55 | J161: 0.75 | K161: 1 | L161: 19 | M161: 22 | N161: 280 | O161: 4 | P161: СРВ | Q161: Пониження РГВ | R161: 5
B162: 43 | C162: 9 | D162: 20.9 | F162: 20.9 | H162: 8С2Б+Вч | I162: 35 | J162: 0.7 | K162: 1а | L162: 16 | M162: 16 | N162: 180 | O162: 4 | P162: СРВ | Q162: Пониження РГВ | R162: 2
B163: 23 | C163: 3 | D163: 10.4 | F163: 10.2 | H163: 10С+Б+Ос | I163: 55 | J163: 0.85 | K163: 1 | L163: 21 | M163: 22 | N163: 340 | O163: 4 | P163: СРВ | Q163: Пониження РГВ | R163: 7
B164: 24 | C164: 22 | D164: 2.6 | F164: =D164 -> 2.6 | H164: 10С | I164: 56 | J164: 0.7 | K164: 1 | L164: 21 | M164: 24 | N164: 300 | O164: 4 | P164: СРВ | Q164: Пониження РГВ | R164: 7
B165: 29 | C165: 10 | D165: 1.3 | F165: 1.3 | H165: 10Б+Д+Вч+Гр | I165: 70 | J165: 0.7 | K165: 2 | L165: 24 | M165: 28 | N165: 220 | O165: 4 | P165: СРВ | Q165: Пониження РГВ | R165: 5
B166: 29 | C166: 12 | D166: 4.4 | F166: 4.4 | H166: 5Вч2Д2Б1Гр | I166: 80 | J166: 0.6 | K166: 2 | L166: 23 | M166: 26 | N166: 190 | O166: 4 | P166: СРВ | Q166: Пониження РГВ | R166: 5
B167: 31 | C167: 16 | D167: 17.7 | F167: 17.7 | H167: 10С+Б | I167: 50 | J167: 0.7 | K167: 1 | L167: 19 | M167: 22 | N167: 260 | O167: 4 | P167: СРВ | Q167: Пониження РГВ | R167: 6
B168: 35 | C168: 5 | D168: 12.1 | F168: 12.1 | H168: 10С | I168: 70 | J168: 0.7 | K168: 1 | L168: 23 | M168: 32 | N168: 340 | O168: 4 | P168: СРВ | Q168: Пониження РГВ | R168: 4
B169: 39 | C169: 7 | D169: 0.8 | F169: 0.8 | H169: 10С | I169: 56 | J169: 0.7 | K169: 1 | L169: 20 | M169: 24 | N169: 280 | O169: 4 | P169: СРВ | Q169: Пониження РГВ | R169: 8
B170: 39 | C170: 8 | D170: 1.9 | F170: 1.9 | H170: 10С | I170: 54 | J170: 0.7 | K170: 1 | L170: 19 | M170: 24 | N170: 240 | O170: 4 | P170: СРВ | Q170: Пониження РГВ | R170: 7
B171: 39 | C171: 14 | D171: 3.8 | F171: 3.8 | H171: 10С | I171: 51 | J171: 0.8 | K171: 1 | L171: 19 | M171: 24 | N171: 270 | O171: 4 | P171: СРВ | Q171: Пониження РГВ | R171: 7
B172: 39 | C172: 31 | D172: 0.3 | F172: 0.3 | H172: 10С | I172: 43 | J172: 0.7 | K172: 1 | L172: 17 | M172: 20 | N172: 220 | O172: 4 | P172: СРВ | Q172: Пониження РГВ | R172: 9
B173: 41 | C173: 11 | D173: 1.3 | F173: 1.3 | H173: 10С | I173: 47 | J173: 0.8 | K173: 1 | L173: 19 | M173: 22 | N173: 300 | O173: 4 | P173: СРВ | Q173: Пониження РГВ | R173: 6
B174: 41 | C174: 14 | D174: 1 | F174: 1 | H174: 10С | I174: 41 | J174: 0.7 | K174: 1 | L174: 17 | M174: 20 | N174: 220 | O174: 4 | P174: СРВ | Q174: Пониження РГВ | R174: 6
B175: 42 | C175: 10 | D175: 2.9 | F175: 2.9 | H175: 10С+Дч | I175: 25 | J175: 0.75 | K175: 1а | L175: 13 | M175: 18 | N175: 160 | O175: 4 | P175: СРВ | Q175: Пониження РГВ | R175: 4
B176: 42 | C176: 12 | D176: 3.5 | F176: 3.5 | H176: 10С | I176: 43 | J176: 0.7 | K176: 1 | L176: 18 | M176: 22 | N176: 240 | O176: 4 | P176: СРВ | Q176: Пониження РГВ | R176: 7
B177: 42 | C177: 13 | D177: 0.7 | F177: 0.7 | H177: 10С | I177: 30 | J177: 0.8 | K177: 1 | L177: 13 | M177: 16 | N177: 170 | O177: 4 | P177: СРВ | Q177: Пониження РГВ | R177: 4
B178: 42 | C178: 21 | D178: 2.3 | F178: 2.3 | H178: 10С+Б | I178: 30 | J178: 0.75 | K178: 1 | L178: 13 | M178: 16 | N178: 160 | O178: 4 | P178: СРВ | Q178: Пониження РГВ | R178: 4
B179: 38 | C179: 1 | D179: 6.7 | F179: =D179 -> 6.7 | H179: 10С+Б | I179: 55 | J179: 0.6 | K179: 1 | L179: 20 | M179: 24 | N179: 230 | O179: 4 | P179: СРВ | Q179: Пониження РГВ | R179: 4
B180: 38 | C180: 9 | D180: 7.4 | F180: 7.4 | H180: 10С+Б | I180: 55 | J180: 0.7 | K180: 1 | L180: 20 | M180: 24 | N180: 270 | O180: 4 | P180: СРВ | Q180: Пониження РГВ | R180: 5
B181: 30 | C181: 7 | D181: 11 | F181: 11 | H181: 8С2Б+Вч | I181: 50 | J181: 0.7 | K181: 1 | L181: 19 | M181: 22 | N181: 230 | O181: 4 | P181: СРВ | Q181: Пониження РГВ | R181: 5
A182: Злазненське | B182: 2 | C182: 3 | D182: 1.1 | F182: 1.1 | H182: 10С | I182: 49 | J182: 0.8 | K182: 1а | L182: 23 | M182: 26 | N182: 380 | O182: 4 | P182: СРВ | Q182: Вітровал,бурелом | R182: 25
B183: 2 | C183: 4 | D183: 6.1 | F183: 6.1 | H183: 10С+Б+Ос | I183: 80 | J183: 0.6 | K183: 2 | L183: 22 | M183: 32 | N183: 280 | O183: 4 | P183: СРВ | Q183: Вітровал,бурелом | R183: 8
B184: 2 | C184: 5 | D184: 3.3 | F184: 3.3 | H184: 10С+Б+Ос | I184: 65 | J184: 0.8 | K184: 1 | L184: 23 | M184: 28 | N184: 390 | O184: 4 | P184: СРВ | Q184: Вітровал,бурелом | R184: 6
B185: 2 | C185: 11 | D185: 2.6 | F185: 2.6 | H185: 10С+Б | I185: 52 | J185: 0.8 | K185: 1а | L185: 23 | M185: 28 | N185: 380 | O185: 4 | P185: СРВ | Q185: Вітровал,бурелом | R185: 5
B186: 1 | C186: 2 | D186: 0.8 | F186: 0.8 | H186: 10С | I186: 58 | J186: 0.8 | K186: 1а | L186: 24 | M186: 30 | N186: 400 | O186: 4 | P186: СРВ | Q186: Вітровал,бурелом | R186: 20
B187: 1 | C187: 14 | D187: 20.4 | F187: 20.4 | H187: 10С+Б | I187: 60 | J187: 0.8 | K187: 1 | L187: 22 | M187: 24 | N187: 380 | O187: 4 | P187: СРВ | Q187: Вітровал,бурелом | R187: 5
B188: 2 | C188: 21 | D188: 18.7 | F188: 18.7 | H188: 10С+Б+Ос | I188: 60 | J188: 0.65 | K188: 1 | L188: 22 | M188: 24 | N188: 300 | O188: 4 | P188: СРВ | Q188: Вітровал,бурелом | R188: 5
B189: 1 | C189: 13 | D189: 2 | F189: 2 | H189: 10С+Б | I189: 80 | J189: 0.6 | K189: 1 | L189: 25 | M189: 32 | N189: 340 | O189: 4 | P189: СРВ | Q189: Вітровал,бурелом | R189: 10
B190: 1 | C190: 12 | D190: 1.2 | F190: 1.2 | H190: 10С+Б+Ос | I190: 60 | J190: 0.8 | K190: 1 | L190: 22 | M190: 24 | N190: 380 | O190: 4 | P190: СРВ | Q190: Вітровал,бурелом | R190: 20
B191: 1 | C191: 19 | D191: 0.9 | F191: 0.9 | H191: 8С2Б | I191: 63 | J191: 0.7 | K191: 1 | L191: 22 | M191: 24 | N191: 300 | O191: 4 | P191: СРВ | Q191: Вітровал,бурелом | R191: 20
B192: 1 | C192: 20 | D192: 1.1 | F192: 1.1 | H192: 10С+Б | I192: 58 | J192: 0.8 | K192: 1 | L192: 22 | M192: 24 | N192: 360 | O192: 4 | P192: СРВ | Q192: Вітровал,бурелом | R192: 25
B193: 1 | C193: 21 | D193: 8.7 | F193: 8.7 | H193: 10С+Б | I193: 46 | J193: 0.7 | K193: 1 | L193: 17 | M193: 18 | N193: 220 | O193: 4 | P193: СРВ | Q193: Вітровал,бурелом | R193: 5
B194: 5 | C194: 7 | D194: 1.6 | F194: 1.6 | H194: 10С+Б | I194: 47 | J194: 0.7 | K194: 1 | L194: 19 | M194: 22 | N194: 260 | O194: 4 | P194: СРВ | Q194: Вітровал,бурелом | R194: 13
B195: 5 | C195: 9 | D195: 2.5 | F195: 2.5 | H195: 10С | I195: 45 | J195: 0.8 | K195: 2 | L195: 14 | M195: 16 | N195: 200 | O195: 4 | P195: СРВ | Q195: Вітровал,бурелом | R195: 8
B196: 5 | C196: 4 | D196: 3.2 | F196: 3.2 | H196: 8С2Б | I196: 13 | J196: 0.7 | K196: 3 | L196: 4 | M196: 6 | N196: 20 | O196: 4 | P196: СРВ | Q196: Вітровал,бурелом | R196: 3
B197: 5 | C197: 3 | D197: 18 | F197: 18 | H197: 10С+Б | I197: 40 | J197: 0.7 | K197: 1 | L197: 17 | M197: 18 | N197: 220 | O197: 4 | P197: СРВ | Q197: Вітровал,бурелом | R197: 5
B198: 5 | C198: 17 | D198: 7.3 | F198: 7.3 | H198: 9С1Б | I198: 60 | J198: 0.8 | K198: 1а | L198: 22 | M198: 26 | N198: 340 | O198: 4 | P198: СРВ | Q198: Вітровал,бурелом | R198: 5
B199: 5 | C199: 22 | D199: 4.8 | F199: 4.8 | H199: 10С | I199: 60 | J199: 0.8 | K199: 1 | L199: 22 | M199: 24 | N199: 360 | O199: 4 | P199: СРВ | Q199: Вітровал,бурелом | R199: 17
B200: 5 | C200: 28 | D200: 4.2 | F200: 4.2 | H200: 5С5Б+Ос | I200: 60 | J200: 0.7 | K200: 1 | L200: 21 | M200: 26 | N200: 230 | O200: 4 | P200: СРВ | Q200: Вітровал,бурелом | R200: 12
B201: Разом: | F201: =SUM(F140:F200) -> 358.5
B203: Всього: | F203: =F201+F138 -> 361.6 | G203: =G201+G138 -> 3
A205: Моквинське | B205: 22 | C205: 24 | D205: 13 | E205: 1 | F205: 0.4 | G205: 0.4 | H205: 10Сз+Бп+Дз | I205: 75 | J205: 0.8 | K205: 1 | L205: 24 | M205: 28 | N205: 410 | O205: 4 | P205: СРС | Q205: Пониження РГВ | R205: 410
B206: 10 | C206: 24 | D206: 6.2 | E206: 1 | F206: 0.6 | G206: 0.6 | H206: 10Сз+Бп | I206: 70 | J206: 0.7 | K206: 1 | L206: 24 | M206: 28 | N206: 360 | O206: 4 | P206: СРС | Q206: Пониження РГВ | R206: 360
B207: 10 | C207: 4 | D207: 0.6 | E207: 1 | F207: 0.2 | H207: 5Сз5Бп | I207: 50 | J207: 0.7 | K207: 2 | L207: 17 | M207: 18 | N207: 180 | O207: 4 | P207: СРС | Q207: Пониження РГВ | R207: 180
B208: 17 | C208: 36 | D208: 9.5 | E208: 1 | F208: 0.2 | H208: 8Сз2Бп | I208: 44 | J208: 0.9 | K208: 1 | L208: 18 | M208: 18 | N208: 280 | O208: 4 | P208: СРС | Q208: Пониження РГВ | R208: 280
B209: 17 | C209: 16 | D209: 1.5 | E209: 1 | F209: 0.2 | H209: 10Сз | I209: 40 | J209: 0.9 | K209: 1а | L209: 18 | M209: 18 | N209: 310 | O209: 4 | P209: СРС | Q209: Пониження РГВ | R209: 310
B210: 17 | C210: 24 | D210: 1.2 | E210: 1 | F210: 0.2 | G210: 0.2 | H210: 8Сз2Бп | I210: 65 | J210: 0.75 | K210: 1 | L210: 23 | M210: 28 | N210: 340 | O210: 4 | P210: СРС | Q210: Пониження РГВ | R210: 340
B211: 17 | C211: 6 | D211: 6.8 | E211: 1 | F211: 0.3 | G211: 0.3 | H211: 8Сз2Бп | I211: 56 | J211: 0.75 | K211: 1 | L211: 21 | M211: 20 | N211: 300 | O211: 4 | P211: СРС | Q211: Пониження РГВ | R211: 300
B212: 10 | C212: 11 | D212: 4.2 | E212: 1 | F212: 0.3 | G212: 0.3 | H212: 10Сз+Бп | I212: 80 | J212: 0.7 | K212: 1 | L212: 24 | M212: 28 | N212: 360 | O212: 4 | P212: СРС | Q212: Пониження РГВ | R212: 360
B213: 10 | C213: 2 | D213: 0.7 | E213: 1 | F213: 0.2 | G213: 0.2 | H213: 7Сз3Бп | I213: 56 | J213: 0.6 | K213: 1 | L213: 19 | M213: 20 | N213: 200 | O213: 4 | P213: СРС | Q213: Пониження РГВ | R213: 200
B214: 63 | C214: 3 | D214: 5 | E214: 1 | F214: 0.2 | G214: 0.2 | H214: 9Сз1Бп | I214: 70 | J214: 0.7 | K214: 1 | L214: 23 | M214: 28 | N214: 330 | O214: 4 | P214: СРС | Q214: Пониження РГВ | R214: 330
B215: 63 | C215: 3 | D215: 5 | E215: 2 | F215: 0.2 | G215: 0.2 | H215: 9Сз1Бп | I215: 70 | J215: 0.7 | K215: 1 | L215: 23 | M215: 28 | N215: 330 | O215: 4 | P215: СРС | Q215: Пониження РГВ | R215: 330
B216: 64 | C216: 13 | D216: 38.5 | E216: 1 | F216: 0.3 | G216: 0.3 | H216: 10Сз+Бп | I216: 55 | J216: 0.8 | K216: 1 | L216: 21 | M216: 22 | N216: 340 | O216: 4 | P216: СРС | Q216: Пониження РГВ | R216: 340
B217: 64 | C217: 13 | D217: 38.5 | E217: 2.3 | F217: 0.2 | G217: 0.2 | H217: 10Сз+Бп | I217: 55 | J217: 0.8 | K217: 1 | L217: 21 | M217: 22 | N217: 340 | O217: 4 | P217: СРС | Q217: Пониження РГВ | R217: 340
B218: 64 | C218: 13 | D218: 38.5 | E218: 3 | F218: 0.4 | G218: 0.4 | H218: 10Сз+Бп | I218: 55 | J218: 0.8 | K218: 1 | L218: 21 | M218: 22 | N218: 340 | O218: 4 | P218: СРС | Q218: Пониження РГВ | R218: 340
... 233 more rows
